bitfinex/quotes_SOLUSD_20250609
["timestamp","ask_amount","ask_price","bid_price","bid_amount"]
[1749503244851,28.08974684,157.55,157.53,20.0]
[1749503245151,21.74255548,157.54,157.53,20.0]
[1749503245437,21.74286113,157.54,157.53,20.0]
[1749503245633,19.36752348,157.54,157.53,20.0]
[1749503245821,21.74383498,157.54,157.53,20.0]
[1749503246587,21.74315316,157.54,157.53,20.0]
[1749503246736,6.34759426,157.54,157.52,20.0]
[1749503246902,19.36752348,157.53,157.52,20.0]
[1749503247532,21.74371094,157.53,157.52,20.0]
[1749503247709,2.3761826,157.53,157.52,20.0]
[1749503248224,21.74359836,157.53,157.52,20.0]
[1749503248429,28.09165416,157.53,157.52,20.0]
[1749503248731,28.09165876,157.53,157.52,20.0]
[1749503249032,28.09165532,157.53,157.52,20.0]
[1749503249425,28.09189403,157.53,157.52,20.0]
[1749503250414,28.0917037,157.53,157.52,20.0]
[1749503250910,25.71552068,157.53,157.52,20.0]
[1749503251107,28.0917037,157.53,157.52,20.0]
[1749503251712,6.3479972,157.53,157.52,20.0]
[1749503251934,28.09118303,157.53,157.52,20.0]
[1749503252136,28.09118303,157.53,157.51,35.48]
[1749503252326,19.36752348,157.52,157.51,15.48]
[1749503252527,21.74368921,157.52,157.5,20.0]
[1749503252727,22.21799021,157.53,157.5,20.0]
[1749503252728,19.36752348,157.51,157.5,20.0]
[1749503252943,21.74369063,157.51,157.5,66.48]
[1749503253145,21.74369063,157.51,157.5,20.0]
[1749503253348,2.37616715,157.51,157.5,20.0]
[1749503253636,2.37616715,157.51,157.5,66.46]
[1749503253942,28.09249388,157.51,157.5,66.48]
[1749503254236,28.09240481,157.51,157.5,20.0]
[1749503254438,28.09240481,157.51,157.5,66.46]
[1749503254637,8.72488133,157.51,157.5,66.46]
[1749503254939,28.09240481,157.51,157.5,20.0]
[1749503255518,8.72488133,157.51,157.5,20.0]
[1749503255718,25.71632673,157.51,157.5,20.0]
[1749503255921,28.09091342,157.51,157.5,20.0]
[1749503256235,28.09100919,157.51,157.5,20.0]
[1749503257543,25.71632673,157.51,157.5,20.0]
[1749503257750,28.08984242,157.51,157.49,20.0]
[1749503257961,19.36752348,157.5,157.49,20.0]
[1749503258252,21.74103022,157.5,157.49,20.0]
[1749503258461,21.74109761,157.5,157.49,20.0]
[1749503259129,28.09030395,157.5,157.49,20.0]
[1749503259540,28.08847289,157.5,157.49,20.0]
[1749503260950,6.34920634,157.5,157.49,20.0]
[1749503261133,25.71672982,157.5,157.49,20.0]
[1749503261328,28.08708185,157.5,157.49,20.0]
[1749503262357,28.08592558,157.5,157.49,20.0]
[1749503262663,8.71841183,157.5,157.49,20.0]
[1749503262866,25.71672982,157.5,157.49,20.0]
[1749503263667,19.36752348,157.5,157.49,20.0]
[1749503263955,25.71634279,157.51,157.5,20.0]
[1749503264156,6.34881931,157.51,157.5,66.02]
[1749503264355,19.36752348,157.51,157.5,66.02]
[1749503264764,25.71600934,157.52,157.5,66.02]
[1749503264960,25.71600934,157.52,157.51,20.0]
[1749503269155,6.34848586,157.52,157.51,20.0]
[1749503269359,25.71600934,157.52,157.51,20.0]
[1749503271168,6.34848586,157.52,157.51,20.0]
[1749503271367,25.71600934,157.52,157.51,20.0]
[1749503272071,45.08353282,157.52,157.51,20.0]
[1749503272235,47.45358665,157.52,157.51,20.0]
[1749503273143,47.45358665,157.52,157.5,20.0]
[1749503273355,25.71600934,157.52,157.51,20.0]
[1749503273534,28.0863847,157.52,157.5,20.0]
[1749503273735,25.71600934,157.52,157.5,20.0]
[1749503273937,25.71600934,157.52,157.51,20.0]
[1749503274268,8.71885228,157.52,157.51,20.0]
[1749503274442,6.34848586,157.52,157.51,20.0]
[1749503274646,28.08637576,157.52,157.51,20.0]
[1749503274972,28.08636534,157.52,157.51,20.0]
[1749503275567,25.71600934,157.52,157.51,20.0]
[1749503275743,28.08658514,157.52,157.51,20.0]
[1749503276441,25.71600934,157.52,157.51,20.0]
[1749503276968,28.08658529,157.52,157.51,20.0]
[1749503277352,28.08659502,157.52,157.51,20.0]
[1749503277553,8.71907154,157.52,157.51,20.0]
[1749503277750,25.71600934,157.52,157.51,20.0]
[1749503277958,28.08659502,157.52,157.51,20.0]
[1749503278771,28.08687184,157.52,157.51,20.0]
[1749503278943,25.71600934,157.52,157.51,20.0]
[1749503279358,28.087172,157.52,157.51,20.0]
[1749503279758,25.71600934,157.52,157.51,20.0]
[1749503280944,28.08746887,157.52,157.51,20.0]
[1749503281281,8.72000379,157.52,157.51,20.0]
[1749503281439,25.71600934,157.52,157.51,20.0]
[1749503281864,58.01611262,157.58,157.54,20.0]
[1749503281865,22.21307701,157.57,157.54,20.0]
[1749503282067,2.37129631,157.56,157.55,20.0]
[1749503282366,2.37123013,157.56,157.54,20.0]
[1749503282664,22.21307701,157.57,157.53,20.0]
[1749503282665,2.37123013,157.55,157.53,20.0]
[1749503282865,2.37123013,157.54,157.53,20.0]
[1749503283167,6.3479972,157.53,157.52,20.0]
[1749503283372,28.08675081,157.53,157.52,20.0]
[1749503283555,28.08780538,157.53,157.51,20.0]
[1749503283764,2.3722847,157.52,157.51,20.0]
[1749503283943,21.73980897,157.52,157.51,20.0]
[1749503284358,2.37228549,157.52,157.51,20.0]
[1749503284569,21.73980897,157.52,157.51,20.0]
[1749503284872,21.74009231,157.52,157.51,20.0]
[1749503285076,28.08849251,157.52,157.51,20.0]
[1749503285368,28.08874519,157.52,157.51,20.0]
[1749503286556,25.71592368,157.52,157.51,20.0]
[1749503286855,28.09000174,157.52,157.51,20.0]
[1749503287064,25.71592368,157.52,157.51,20.0]
[1749503287250,28.09001148,157.52,157.51,20.0]
[1749503287880,47.45753496,157.52,157.51,20.0]
[1749503288073,45.08344716,157.52,157.51,20.0]
[1749503288282,8.72291002,157.52,157.51,20.0]
[1749503288484,8.72279391,157.52,157.51,20.0]
[1749503288781,28.09024564,157.52,157.51,20.0]
[1749503289359,28.09028462,157.52,157.51,20.0]
[1749503289656,25.71592368,157.52,157.51,20.0]
[1749503290070,28.09116211,157.52,157.51,20.0]
[1749503290480,28.09117932,157.52,157.51,20.0]
[1749503291777,25.71592368,157.52,157.51,20.0]
[1749503292080,28.09134761,157.52,157.51,20.0]
[1749503293485,47.45887109,157.52,157.5,20.0]
[1749503293787,6.34920634,157.5,157.49,20.0]
[1749503293960,28.09251418,157.5,157.49,20.0]
[1749503294384,28.09239206,157.5,157.49,20.0]
[1749503294894,32.84643874,157.5,157.49,20.0]
[1749503295277,32.84720468,157.5,157.49,20.0]
[1749503296175,8.72563452,157.5,157.49,20.0]
[1749503296384,32.84703965,157.5,157.49,20.0]
[1749503296699,30.4707765,157.5,157.49,20.0]
[1749503296871,32.84776659,157.5,157.49,20.0]
[1749503298194,13.48024311,157.5,157.49,20.0]
[1749503298368,32.84776659,157.5,157.49,20.0]
[1749503298568,13.48009397,157.5,157.49,20.0]
[1749503298770,6.34920634,157.5,157.49,20.0]
[1749503299070,6.34892805,157.51,157.49,20.0]
[1749503299272,30.46991627,157.53,157.52,20.0]
[1749503299489,32.84635542,157.53,157.52,64.62]
[1749503299788,32.84635543,157.53,157.52,64.62]
[1749503300163,13.47875595,157.53,157.52,64.62]
[1749503300394,32.84627943,157.53,157.52,64.62]
[1749503301065,13.47875595,157.53,157.52,64.62]
[1749503301266,2.37636316,157.53,157.52,64.62]
[1749503301481,25.7152258,157.54,157.53,20.0]
[1749503301674,8.72351568,157.54,157.53,20.0]
[1749503301877,8.72337489,157.54,157.53,20.0]
[1749503302496,6.34770232,157.54,157.53,20.0]
[1749503303086,28.08958936,157.54,157.53,20.0]
[1749503303284,25.7152258,157.54,157.53,20.0]
[1749503303486,28.08965127,157.54,157.53,20.0]
[1749503303786,68.07636766,157.54,157.51,20.0]
[1749503303989,38.73504696,157.52,157.51,20.0]
[1749503304195,45.85967969,157.52,157.51,20.0]
[1749503304383,52.20807989,157.52,157.5,20.0]
[1749503304581,25.71592368,157.52,157.51,20.0]
[1749503304778,52.20996583,157.52,157.5,20.0]
[1749503304980,52.20996583,157.52,157.51,20.0]
[1749503304981,45.08344716,157.52,157.51,20.0]
[1749503305169,52.20991395,157.52,157.51,20.0]
[1749503305604,52.20991395,157.52,157.5,20.0]
[1749503305777,19.36752348,157.51,157.5,20.0]
[1749503305972,26.49469085,157.51,157.49,20.0]
[1749503306207,26.49469085,157.5,157.49,20.0]
[1749503306506,32.84389719,157.5,157.49,20.0]
[1749503306679,28.09237053,157.5,157.49,20.0]
[1749503307010,32.84393207,157.5,157.49,20.0]
[1749503307204,28.09231151,157.5,157.49,20.0]
[1749503307405,32.84393207,157.5,157.49,20.0]
[1749503307700,28.09258067,157.5,157.49,20.0]
[1749503307889,32.84425975,157.5,157.49,20.0]
[1749503308207,28.09258067,157.5,157.49,20.0]
[1749503308402,8.72505719,157.5,157.49,20.0]
[1749503308709,25.71672982,157.5,157.49,20.0]
[1749503308882,8.72504258,157.5,157.49,20.0]
[1749503309203,28.09256606,157.5,157.49,20.0]
[1749503309391,25.71672982,157.5,157.49,20.0]
[1749503309604,28.09258582,157.5,157.49,20.0]
[1749503309985,28.0926128,157.5,157.49,20.0]
[1749503310996,8.72508932,157.5,157.49,20.0]
[1749503311187,28.09250661,157.5,157.49,20.0]
[1749503311672,25.71672982,157.5,157.49,20.0]
[1749503311885,28.0925021,157.5,157.49,20.0]
[1749503312780,8.72498313,157.5,157.49,20.0]
[1749503312980,25.71672982,157.5,157.49,20.0]
[1749503313182,28.0924676,157.5,157.49,20.0]
[1749503313395,25.71672982,157.5,157.49,20.0]
[1749503313593,28.0924676,157.5,157.49,20.0]
[1749503314113,8.72494412,157.5,157.49,20.0]
[1749503314298,28.0924676,157.5,157.49,20.0]
[1749503314496,25.71672982,157.5,157.49,20.0]
[1749503314800,28.09252657,157.5,157.49,20.0]
[1749503315590,25.71672982,157.5,157.49,20.0]
[1749503316285,15.8710005,157.52,157.49,20.0]
[1749503316504,2.37580128,157.51,157.5,20.0]
[1749503316799,19.36752348,157.51,157.5,20.0]
[1749503317799,6.3479972,157.53,157.52,20.0]
[1749503318103,8.72350415,157.53,157.52,20.0]
[1749503318305,25.71552068,157.53,157.52,20.0]
[1749503318678,22.21178135,157.58,157.52,20.0]
[1749503318879,2.37521186,157.57,157.55,20.0]
[1749503319086,26.49167935,157.56,157.55,20.0]
[1749503319289,21.74273534,157.56,157.55,20.0]
[1749503319604,26.49167935,157.56,157.55,20.0]
[1749503319774,19.36752348,157.56,157.55,20.0]
[1749503319983,26.49069587,157.56,157.55,20.0]
[1749503320182,26.49080733,157.56,157.55,20.0]
[1749503320382,32.83759585,157.56,157.55,20.0]
[1749503320690,28.08862283,157.56,157.55,20.0]
[1749503320897,32.83756684,157.56,157.55,20.0]
[1749503321097,28.08862283,157.56,157.55,20.0]
[1749503321299,32.83757207,157.56,157.55,20.0]
[1749503321497,28.08858909,157.56,157.55,20.0]
[1749503321690,30.46325601,157.56,157.55,20.0]
[1749503321901,25.714312,157.56,157.55,20.0]
[1749503322206,32.83704444,157.56,157.55,20.0]
[1749503322508,28.08810043,157.56,157.55,20.0]
[1749503322810,32.83704444,157.56,157.55,20.0]
[1749503323108,28.08786886,157.56,157.55,20.0]
[1749503323310,32.83681738,157.56,157.55,20.0]
[1749503323499,28.08787337,157.56,157.55,20.0]
[1749503323690,30.46325601,157.56,157.55,20.0]
[1749503323886,28.08787337,157.56,157.55,20.0]
[1749503324086,32.83681738,157.56,157.55,20.0]
[1749503324286,28.08787337,157.56,157.55,20.0]
[1749503324486,32.83681287,157.56,157.55,20.0]
[1749503324690,25.714312,157.56,157.55,20.0]
[1749503324893,32.83685183,157.56,157.55,20.0]
[1749503325092,28.08790782,157.56,157.55,20.0]
[1749503325384,32.83680762,157.56,157.55,20.0]
[1749503325588,28.08786361,157.56,157.55,20.0]
[1749503325794,32.83680762,157.56,157.55,20.0]
[1749503326006,28.08786361,157.56,157.55,20.0]
[1749503326210,32.83621545,157.56,157.55,20.0]
[1749503326404,28.08724223,157.56,157.55,20.0]
[1749503326613,13.46866276,157.56,157.55,20.0]
[1749503326809,28.08724223,157.56,157.55,20.0]
[1749503327009,32.83618624,157.56,157.55,20.0]
[1749503327212,28.08724223,157.56,157.55,20.0]
[1749503327516,32.83618624,157.56,157.55,20.0]
[1749503327729,28.08724223,157.56,157.55,20.0]
[1749503327893,32.83618624,157.56,157.55,20.0]
[1749503328091,28.08724223,157.56,157.55,20.0]
[1749503328317,32.83618624,157.56,157.55,20.0]
[1749503328520,28.08724223,157.56,157.55,20.0]
[1749503328725,25.714312,157.56,157.55,20.0]
[1749503328927,32.83152939,157.56,157.54,20.0]
[1749503329096,32.83152939,157.56,157.49,6.3387]
[1749503329097,26.48474087,157.55,157.53,20.0]
[1749503329292,21.74018386,157.54,157.53,20.0]
[1749503329804,21.74031212,157.54,157.53,20.0]
[1749503330006,26.48491019,157.54,157.52,20.0]
[1749503330227,4.74455701,157.55,157.53,20.0]
[1749503330413,7.11725159,157.54,157.53,20.0]
[1749503330596,2.37269458,157.54,157.53,20.0]
[1749503330791,7.11725159,157.54,157.53,20.0]
[1749503330986,8.72028884,157.54,157.53,20.0]
[1749503331304,32.83236933,157.54,157.53,20.0]
[1749503331493,25.71511774,157.54,157.53,20.0]
[1749503331689,32.83233482,157.54,157.53,20.0]
[1749503331894,28.08777781,157.54,157.53,20.0]
[1749503332098,32.83233482,157.54,157.53,20.0]
[1749503332296,28.08777781,157.54,157.53,20.0]
[1749503332819,32.83233482,157.54,157.53,20.0]
[1749503333021,28.08777781,157.54,157.53,20.0]
[1749503333195,6.34759426,157.54,157.53,20.0]
[1749503333405,25.71511774,157.54,157.53,20.0]
[1749503333710,28.08766379,157.54,157.53,20.0]
[1749503333907,8.72014031,157.54,157.53,20.0]
[1749503334211,28.08766379,157.54,157.53,20.0]
[1749503334395,28.08766379,157.54,157.52,20.0]
[1749503334594,21.74006953,157.53,157.52,20.0]
[1749503334797,19.36752348,157.53,157.52,20.0]
[1749503335096,21.73998585,157.53,157.52,20.0]
[1749503335306,28.08805121,157.53,157.52,20.0]
[1749503336651,28.08808274,157.53,157.52,20.0]
[1749503336929,47.45561072,157.53,157.5,20.0]
[1749503337106,19.36752348,157.51,157.5,20.0]
[1749503337304,21.74032351,157.51,157.5,20.0]
[1749503338123,21.74024345,157.51,157.5,20.0]
[1749503338901,28.0890467,157.51,157.5,20.0]
[1749503339805,8.72152322,157.51,157.5,20.0]
[1749503340013,6.34880325,157.51,157.5,20.0]
[1749503340207,25.71632673,157.51,157.5,20.0]
[1749503340397,6.3479972,157.53,157.52,20.0]
[1749503340603,25.71552068,157.53,157.52,20.0]
[1749503340801,28.08797995,157.53,157.52,20.0]
[1749503341015,25.71552068,157.53,157.52,20.0]
[1749503342232,6.34678852,157.56,157.55,20.0]
[1749503342722,28.0866236,157.56,157.55,20.0]
[1749503342917,8.71910012,157.56,157.55,20.0]
[1749503343119,28.0866236,157.56,157.55,20.0]
[1749503343430,28.08684199,157.56,157.55,20.0]
[1749503343607,19.36752348,157.6,157.51,25.94502348]
[1749503343608,15.86284624,157.61,157.58,20.0]
[1749503343817,26.0,157.59,157.58,20.0]
[1749503344017,19.36752348,157.59,157.58,20.0]
[1749503344218,4.74329969,157.6,157.58,20.0]
[1749503344423,19.36752348,157.59,157.58,20.0]
[1749503344621,41.86284624,157.61,157.58,20.0]
[1749503344820,48.20762131,157.61,157.59,20.0]
[1749503345024,38.73504696,157.6,157.59,20.0]
[1749503345230,19.36752348,157.6,157.59,20.0]
[1749503345808,2.37206122,157.6,157.59,20.0]
[1749503346115,6.34482874,157.61,157.6,20.0]
[1749503346520,28.08088552,157.61,157.6,20.0]
[1749503346712,8.71336204,157.61,157.6,20.0]
[1749503346913,25.71235222,157.61,157.6,20.0]
[1749503347130,28.08088552,157.61,157.6,20.0]
[1749503347306,8.71336204,157.61,157.6,20.0]
[1749503347510,25.71235222,157.61,157.6,20.0]
[1749503347710,28.08088552,157.61,157.6,20.0]
[1749503347921,8.71336204,157.61,157.6,20.0]
[1749503348141,25.71235222,157.61,157.6,20.0]
[1749503348335,28.08088552,157.61,157.6,20.0]
[1749503349630,28.08088552,157.61,157.59,20.0]
[1749503349815,38.73504696,157.6,157.59,20.0]
[1749503350023,41.10053323,157.6,157.59,20.0]
[1749503350244,4.74067971,157.6,157.59,20.0]
[1749503350449,52.94744614,157.61,157.59,20.0]
[1749503350753,43.46936584,157.6,157.59,20.0]
[1749503350954,52.18028162,157.6,157.59,20.0]
[1749503351415,13.44523466,157.6,157.59,20.0]
[1749503351610,2.36573812,157.6,157.59,20.0]
[1749503351809,6.34516133,157.61,157.6,20.0]
[1749503352241,25.71268481,157.61,157.6,20.0]
[1749503352614,6.34516133,157.61,157.6,20.0]
[1749503352945,6.34397005,157.63,157.62,20.0]
[1749503353240,8.70776261,157.63,157.62,20.0]
[1749503353441,28.07522175,157.63,157.62,20.0]
[1749503354838,28.35910713,157.63,157.61,20.0]
[1749503355015,21.73081394,157.62,157.61,20.0]
[1749503355216,2.36332907,157.62,157.61,20.0]
[1749503355427,6.34397005,157.63,157.62,20.0]
[1749503355624,28.07406404,157.63,157.62,20.0]
[1749503355820,28.07406404,157.63,157.61,20.0]
[1749503356115,6.34397005,157.63,157.62,20.0]
[1749503356937,22.20325554,157.64,157.62,20.0]
[1749503357137,22.20325554,157.64,157.63,20.0]
[1749503357331,41.57077902,157.64,157.63,20.0]
[1749503357516,25.7110911,157.64,157.63,20.0]
[1749503358228,6.34356762,157.64,157.63,20.0]
[1749503358422,25.7110911,157.64,157.63,20.0]
[1749503358833,22.19967016,157.66,157.63,20.0]
[1749503359170,24.56009366,157.66,157.65,20.0]
[1749503359342,24.56006419,157.66,157.65,20.0]
[1749503359529,24.56006419,157.66,157.64,20.0]
[1749503359728,24.56006419,157.66,157.65,20.0]
[1749503360037,22.19967016,157.66,157.65,20.0]
[1749503360412,41.56719364,157.66,157.65,20.0]
[1749503360609,46.29178469,157.66,157.65,20.0]
[1749503360815,41.56719364,157.66,157.64,20.0]
[1749503361014,6.3427629,157.66,157.65,20.0]
[1749503361216,25.71028638,157.66,157.65,20.0]
[1749503361437,6.3427629,157.66,157.65,20.0]
[1749503361746,25.71028638,157.66,157.63,20.0]
[1749503361942,19.36752348,157.64,157.63,20.0]
[1749503362125,6.3427629,157.66,157.65,20.0]
[1749503362316,6.3427629,157.66,157.63,20.0]
[1749503362521,19.36752348,157.64,157.63,20.0]
[1749503362914,25.7110911,157.64,157.63,20.0]
[1749503363121,25.7110911,157.64,157.62,20.0]
[1749503363122,6.34356762,157.64,157.62,20.0]
[1749503363333,6.34356762,157.64,157.63,20.0]
[1749503363621,25.7110911,157.64,157.63,20.0]
[1749503363919,6.34356762,157.64,157.63,20.0]
[1749503364123,25.7110911,157.64,157.63,20.0]
[1749503364325,25.7110911,157.64,157.62,20.0]
[1749503364524,19.36752348,157.63,157.62,20.0]
[1749503364942,25.71149353,157.63,157.62,20.0]
[1749503365137,6.34397005,157.63,157.62,20.0]
[1749503365424,25.71149353,157.63,157.62,20.0]
[1749503365639,6.34352274,157.65,157.64,20.0]
[1749503365832,25.71104622,157.65,157.64,20.0]
[1749503367329,6.34352274,157.65,157.64,20.0]
[1749503367527,25.71104622,157.65,157.64,20.0]
[1749503368635,25.71104622,157.65,157.62,20.0]
[1749503368834,25.71104622,157.65,157.58,44.62]
[1749503368835,6.34352274,157.65,157.63,20.0]
[1749503369046,6.34356762,157.64,157.63,20.0]
[1749503369248,25.7110911,157.64,157.63,20.0]
[1749503370124,6.34356762,157.64,157.63,20.0]
[1749503370333,25.7110911,157.64,157.63,20.0]
[1749503371252,25.7110911,157.64,157.62,20.0]
[1749503371449,38.73504696,157.63,157.6,20.0]
[1749503371667,38.73504696,157.61,157.6,20.0]
[1749503372352,0.28432314,157.63,157.61,20.0]
[1749503372555,19.36752348,157.62,157.6,20.0]
[1749503372758,19.36752348,157.61,157.6,20.0]
[1749503373250,25.71229855,157.61,157.6,20.0]
[1749503373743,25.71229855,157.61,157.59,20.0]
[1749503373934,19.36752348,157.6,157.59,20.0]
[1749503374939,6.34477507,157.61,157.6,20.0]
[1749503375246,25.71229855,157.61,157.6,20.0]
[1749503375436,6.34397005,157.63,157.61,20.0]
[1749503375636,19.36752348,157.62,157.61,20.0]
[1749503375842,19.36752348,157.62,157.59,20.0]
[1749503376046,19.36752348,157.62,157.56,6.6173]
[1749503376047,6.34397005,157.63,157.61,20.0]
[1749503376467,19.36752348,157.62,157.61,20.0]
[1749503376760,25.71189602,157.62,157.61,20.0]
[1749503378578,26.0,157.62,157.61,20.0]
[1749503378751,45.36752348,157.62,157.61,20.0]
[1749503380674,51.71189602,157.62,157.61,20.0]
[1749503380872,51.71189602,157.62,157.59,20.0]
[1749503381069,32.34437254,157.62,157.61,20.0]
[1749503381366,51.71189602,157.62,157.61,20.0]
[1749503381976,32.34437254,157.62,157.61,20.0]
[1749503382181,51.71189602,157.62,157.61,20.0]
[1749503382850,51.71189602,157.62,157.59,20.0]
[1749503383062,32.34437254,157.62,157.61,20.0]
[1749503383849,51.71189602,157.62,157.59,20.0]
[1749503384073,32.34437254,157.62,157.61,20.0]
[1749503384257,51.71189602,157.62,157.61,20.0]
[1749503384462,54.08102536,157.62,157.61,20.0]
[1749503384980,34.71350188,157.62,157.61,20.0]
[1749503385349,54.08125687,157.62,157.61,20.0]
[1749503385673,56.45236624,157.62,157.61,20.0]
[1749503385854,58.82172726,157.62,157.59,20.0]
[1749503386061,32.34437254,157.62,157.61,20.0]
[1749503386272,54.08391325,157.62,157.61,20.0]
[1749503386492,58.82461334,157.62,157.61,20.0]
[1749503386856,58.82461334,157.62,157.59,20.0]
[1749503387058,51.71189602,157.62,157.61,20.0]
[1749503387360,32.34437254,157.62,157.61,20.0]
[1749503387563,58.82712657,157.62,157.61,20.0]
[1749503388353,39.45960309,157.62,157.59,20.0]
[1749503388653,32.34437254,157.62,157.61,20.0]
[1749503388854,37.09024951,157.62,157.59,20.0]
[1749503389082,32.34437254,157.62,157.61,20.0]
[1749503389292,34.71650741,157.62,157.61,20.0]
[1749503389602,7.11783885,157.62,157.61,20.0]
[1749503390112,11.08934056,157.65,157.63,20.0]
[1749503390253,7.1181264,157.64,157.63,20.0]
[1749503390453,4.74603879,157.64,157.63,20.0]
[1749503390880,26.48564557,157.64,157.63,20.0]
[1749503391390,13.46168971,157.64,157.63,20.0]
[1749503391779,7.11804016,157.64,157.63,20.0]
[1749503392082,4.74603879,157.66,157.63,39.36752348]
[1749503392293,6.34147116,157.7,157.69,20.0]
[1749503392457,13.45476756,157.7,157.69,20.0]
[1749503392794,32.8221835,157.7,157.69,20.0]
[1749503393292,13.45466002,157.7,157.69,20.0]
[1749503393479,4.74195738,157.7,157.69,20.0]
[1749503393793,7.11304753,157.7,157.69,45.80532348]
[1749503393980,4.74195738,157.71,157.7,20.0]
[1749503394181,2.37128532,157.71,157.7,20.0]
[1749503394359,8.71203733,157.71,157.7,20.0]
[1749503394559,2.37128532,157.71,157.7,39.36752348]
[1749503394769,8.71203733,157.71,157.7,20.0]
[1749503395285,19.36752348,157.79,157.77,20.0]
[1749503395455,19.36752348,157.84,157.79,20.0]
[1749503395776,19.36752348,157.8,157.77,20.0]
[1749503395987,19.36752348,157.78,157.77,20.0]
[1749503396501,19.36752348,157.78,157.76,20.0]
[1749503396678,19.36752348,157.77,157.76,20.0]
[1749503397376,25.7058641,157.77,157.76,20.0]
[1749503398786,25.7058641,157.77,157.76,66.8]
[1749503399293,6.33834062,157.77,157.76,66.8]
[1749503399581,19.36752348,157.77,157.76,66.8]
[1749503401560,25.7058641,157.77,157.76,66.8]
[1749503403467,15.84380083,157.8,157.78,20.0]
[1749503403670,15.84380083,157.8,157.79,20.0]
[1749503403892,35.21132431,157.8,157.78,20.0]
[1749503404065,35.21132431,157.8,157.79,20.0]
[1749503404764,35.21132431,157.8,157.78,20.0]
[1749503404964,19.36752348,157.79,157.78,20.0]
[1749503405384,9.96524118,157.86,157.83,20.0]
[1749503405591,9.96524118,157.86,157.78,19.36752348]
[1749503405592,6.33512828,157.85,157.84,20.0]
[1749503405798,2.39152536,157.86,157.85,20.0]
[1749503406066,2.39152536,157.86,157.85,27.7655]
[1749503406475,23.8361162,157.93,157.92,20.0]
[1749503406903,17.504197,157.93,157.92,20.0]
[1749503407690,36.87172048,157.93,157.92,20.0]
[1749503407995,17.504197,157.93,157.92,20.0]
[1749503408379,23.8361162,157.93,157.92,20.0]
[1749503408577,17.504197,157.93,157.92,20.0]
[1749503408775,43.20363968,157.93,157.92,20.0]
[1749503408995,23.8361162,157.93,157.92,20.0]
[1749503409297,62.57116316,157.93,157.92,20.0]
[1749503409598,62.57116316,157.93,157.9,20.0]
[1749503410569,39.66591421,157.93,157.89,20.0]
[1749503410767,39.66591421,157.93,157.91,20.0]
[1749503410998,38.73504696,157.92,157.89,20.0]
[1749503411181,19.36752348,157.9,157.89,20.0]
[1749503411496,28.89593455,157.9,157.89,20.0]
[1749503411669,6.33312222,157.9,157.89,20.0]
[1749503411865,6.33267831,157.92,157.89,20.0]
[1749503412091,6.33267831,157.92,157.91,20.0]
[1749503412401,35.22861286,157.92,157.91,20.0]
[1749503412569,35.22861286,157.92,157.85,6.1156]
[1749503412570,6.33267831,157.92,157.85,6.1156]
[1749503412776,28.89593455,157.88,157.85,6.1156]
[1749503413097,28.89593455,157.86,157.85,6.1156]
[1749503413281,6.33267831,157.92,157.85,6.1156]
[1749503413481,28.89593455,157.87,157.85,6.1156]
[1749503413682,6.33267831,157.92,157.85,6.1156]
[1749503413879,28.89593455,157.86,157.85,6.1156]
[1749503414399,6.33267831,157.92,157.85,12.45062895]
[1749503414566,6.33267831,157.92,157.85,6.1156]
[1749503414765,17.504197,157.93,157.86,66.52964886]
[1749503414990,28.89593455,157.89,157.86,47.88]